bitfinex/quotes_SOLUSD_20241209
["timestamp","ask_amount","ask_price","bid_price","bid_amount"]
[1733754790752,1.5295,229.58,229.48,23.776884]
[1733754791243,1.5295,229.58,229.43,6.7800211]
[1733754791445,1.5295,229.58,229.42,0.65344829]
[1733754791446,1.5295,229.58,229.42,19.96991287]
[1733754791679,1.5295,229.58,229.45,0.12549]
[1733754792126,1.5295,229.58,229.44,0.12549]
[1733754792330,1.5295,229.58,229.44,0.77899742]
[1733754792557,1.5295,229.58,229.46,0.12549]
[1733754793452,1.5295,229.58,229.45,0.9044906]
[1733754793767,1.5295,229.58,229.48,0.12549]
[1733754796264,1.5295,229.58,229.44,23.776884]
[1733754796426,1.5295,229.58,229.42,19.31646458]
[1733754796754,1.5295,229.58,229.42,12.53644348]
[1733754797355,1.5295,229.58,229.43,0.12549]
[1733754797562,1.5295,229.58,229.46,36.43881748]
[1733754797892,1.5295,229.58,229.48,23.902374]
[1733754798457,1.5295,229.58,229.49,0.12549]
[1733754798658,1.5295,229.58,229.45,32.53644348]
[1733754798659,1.5295,229.58,229.44,23.776884]
[1733754798855,1.5295,229.58,229.43,6.7800211]
[1733754799490,1.5295,229.58,229.43,0.12549]
[1733754799785,6.3988,229.56,229.43,0.12549]
[1733754800090,20.0,229.53,229.4,6.7800211]
[1733754800297,20.0,229.53,229.39,7.43362236]
[1733754800661,20.0,229.53,229.37,20.34006331]
[1733754800662,1.6318,229.52,229.37,20.34006331]
[1733754800865,1.6318,229.52,229.37,6.7800211]
[1733754801061,1.6318,229.52,229.38,0.12549]
[1733754801606,1.6318,229.52,229.37,0.25098]
[1733754801867,0.12549,229.51,229.34,6.7800211]
[1733754802059,1.6318,229.52,229.34,6.7800211]
[1733754802060,6.558,229.5,229.34,6.7800211]
[1733754802267,20.0,229.47,229.34,6.7800211]
[1733754802784,1.5867,229.46,229.33,6.7800211]
[1733754802994,1.5867,229.46,229.33,0.12549]
[1733754803160,1.5867,229.46,229.31,6.7800211]
[1733754803365,1.5867,229.46,229.28,13.19029985]
[1733754803366,0.12549,229.45,229.28,0.65385637]
[1733754803585,0.12549,229.45,229.27,6.7800211]
[1733754803586,20.0,229.41,229.27,6.7800211]
[1733754803774,20.0,229.41,229.25,19.31646458]
[1733754803775,1.646,229.4,229.25,19.31646458]
[1733754804094,1.646,229.4,229.26,0.25098]
[1733754804294,1.646,229.4,229.26,13.44146102]
[1733754804484,1.646,229.4,229.27,12.53644348]
[1733754804792,1.646,229.4,229.28,0.12549]
[1733754804956,1.646,229.4,229.27,12.53644348]
[1733754805162,1.646,229.4,229.27,0.25098]
[1733754805382,1.646,229.4,229.26,0.65403754]
[1733754805582,20.0,229.36,229.21,6.7800211]
[1733754805885,20.0,229.36,229.2,19.31646458]
[1733754806193,20.0,229.36,229.21,12.78742348]
[1733754806514,20.0,229.36,229.26,0.12549]
[1733754806693,20.0,229.36,229.26,12.78742348]
[1733754806906,20.0,229.36,229.28,0.25098]
[1733754807086,20.0,229.36,229.29,0.25098]
[1733754807430,20.0,229.36,229.29,0.12549]
[1733754807711,6.3717,229.39,229.31,0.12549]
[1733754807920,6.3717,229.39,229.31,36.56430748]
[1733754808216,6.3717,229.39,229.31,0.12549]
[1733754808417,6.3717,229.39,229.3,0.25098]
[1733754808987,6.3717,229.39,229.3,0.12549]
[1733754809331,20.0,229.36,229.24,23.776884]
[1733754809792,20.0,229.36,229.25,0.12549]
[1733754810902,6.3717,229.39,229.28,23.902374]
[1733754811099,20.0,229.36,229.28,23.902374]
[1733754811405,20.0,229.36,229.28,0.12549]
[1733754811793,20.0,229.36,229.28,12.91291348]
[1733754811987,6.3717,229.39,229.3,24.027864]
[1733754812186,6.3717,229.39,229.3,36.56430748]
[1733754812946,6.3717,229.39,229.32,23.902374]
[1733754813146,6.3717,229.39,229.32,23.776884]
[1733754814023,20.0,229.36,229.25,0.65391223]
[1733754814230,6.3717,229.39,229.26,0.25098]
[1733754814427,20.0,229.36,229.23,6.7800211]
[1733754814647,1.5441,229.35,229.21,7.43406887]
[1733754814816,1.5441,229.35,229.21,6.7800211]
[1733754815531,1.5441,229.35,229.21,0.12549]
[1733754816675,1.5441,229.35,229.19,6.7800211]
[1733754816676,20.0,229.31,229.19,6.7800211]
[1733754816830,20.0,229.31,229.18,6.7800211]
[1733754817020,20.0,229.31,229.16,26.09648569]
[1733754817021,20.0,229.31,229.19,0.12549]
[1733754817220,20.0,229.31,229.17,6.7800211]
[1733754817439,20.0,229.31,229.19,12.78742348]
[1733754818244,20.0,229.31,229.19,19.56744458]
[1733754818551,20.0,229.31,229.22,0.12549]
[1733754818743,6.2047,229.34,229.24,0.12549]
[1733754819251,6.2047,229.34,229.22,23.902374]
[1733754819430,6.2047,229.34,229.22,0.25098]
[1733754820781,20.0,229.31,229.22,0.25098]
[1733754820963,20.0,229.31,229.19,12.53644348]
[1733754820964,20.0,229.31,229.19,6.7800211]
[1733754821276,20.0,229.31,229.18,13.56004221]
[1733754821277,20.0,229.31,229.18,6.7800211]
[1733754821446,1.5216,229.3,229.18,6.7800211]
[1733754821643,1.5216,229.3,229.16,0.25098]
[1733754821846,1.5216,229.3,229.15,6.7800211]
[1733754822257,20.0,229.25,229.12,6.7800211]
[1733754822458,20.0,229.25,229.11,6.7800211]
[1733754822459,1.6596,229.24,229.11,6.7800211]
[1733754822889,1.6596,229.19,229.1,13.56004221]
[1733754823247,1.6596,229.19,229.03,6.7800211]
[1733754823444,21.6596,229.19,229.02,6.7800211]
[1733754823649,21.6596,229.19,229.03,0.25098]
[1733754823886,20.0,229.15,229.01,20.34006331]
[1733754824199,21.5592,229.14,228.99,6.7800211]
[1733754824483,21.5592,229.14,228.98,0.5252676]
[1733754824484,20.0,229.1,228.98,7.3052887]
[1733754824667,20.0,229.1,228.98,0.5252676]
[1733754825251,0.25098,229.08,228.98,0.5252676]
[1733754826051,1.5592,229.09,228.98,0.5252676]
[1733754827080,1.5592,229.09,228.99,0.37647]
[1733754827457,1.5592,229.09,228.99,24.153354]
[1733754828030,1.5592,229.09,228.99,23.902374]
[1733754828674,1.5592,229.09,228.99,23.776884]
[1733754829073,1.5592,229.09,228.98,0.5252676]
[1733754831311,20.25098,229.08,228.98,0.5252676]
[1733754831509,20.0,229.07,228.98,0.5252676]
[1733754831822,20.12549,229.05,228.98,0.5252676]
[1733754832416,20.0,229.05,228.98,0.5252676]
[1733754837096,1.5592,229.09,228.98,0.5252676]
[1733754838393,1.5592,229.09,229.0,0.25098]
[1733754838707,1.5592,229.09,229.01,0.12549]
[1733754840024,20.0,229.1,229.05,0.12549]
[1733754840315,1.5588,229.15,229.03,23.776884]
[1733754840902,1.5588,229.15,229.04,0.25098]
[1733754841094,1.5588,229.15,229.01,23.776884]
[1733754841297,1.5588,229.15,229.02,0.12549]
[1733754841506,1.5588,229.15,229.02,0.25098]
[1733754841687,1.5588,229.15,229.03,23.902374]
[1733754841892,1.5588,229.15,229.02,0.12549]
[1733754842438,1.5588,229.15,229.02,20.53154109]
[1733754842593,1.5588,229.15,229.04,0.25098]
[1733754842787,1.5588,229.15,229.04,20.40605109]
[1733754843013,6.0232,229.19,229.09,0.12549]
[1733754844418,1.5805,229.21,229.12,0.12549]
[1733754844619,6.1234,229.25,229.14,20.15507109]
[1733754844821,6.1234,229.25,229.15,23.776884]
[1733754845222,6.1234,229.25,229.13,24.027864]
[1733754845439,1.5688,229.26,229.14,20.40605109]
[1733754845630,1.5688,229.26,229.15,24.027864]
[1733754845835,1.5688,229.26,229.16,20.40605109]
[1733754846051,5.0,229.35,229.22,0.25098]
[1733754846052,1.5324,229.35,229.22,0.25098]
[1733754846334,1.5324,229.35,229.23,0.12549]
[1733754846540,3.39120297,229.35,229.22,23.776884]
[1733754846832,1.5324,229.35,229.22,23.776884]
[1733754847034,1.5324,229.35,229.23,0.12549]
[1733754847448,1.5324,229.35,229.22,0.12549]
[1733754847449,1.5324,229.35,229.22,0.25098]
[1733754847918,1.5324,229.35,229.23,23.776884]
[1733754848816,20.0,229.34,229.23,23.776884]
[1733754849154,1.5324,229.35,229.09,5.0]
[1733754849155,20.0,229.32,229.15,20.15507109]
[1733754849331,0.25098,229.29,229.1,20.15507109]
[1733754849544,20.0,229.27,229.07,20.15507109]
[1733754849943,20.0,229.27,229.09,0.25098]
[1733754850149,20.0,229.27,229.09,20.40605109]
[1733754850351,20.25098,229.26,229.08,20.40605109]
[1733754850873,0.12549,229.25,229.07,20.15507109]
[1733754851079,8.0431,229.23,229.03,0.65456024]
[1733754851242,20.0,229.18,228.98,0.5252676]
[1733754851440,20.0,229.14,228.98,0.5252676]
[1733754851943,20.0,229.14,228.99,0.25098]
[1733754852154,20.25098,229.13,228.98,0.5252676]
[1733754852352,20.0,229.12,228.98,0.5252676]
[1733754852557,20.0,229.11,228.98,0.5252676]
[1733754855765,20.0,229.11,228.99,0.12549]
[1733754855968,20.0,229.11,228.99,23.776884]
[1733754857353,0.12549,229.13,228.99,23.776884]
[1733754857673,20.25098,229.13,228.99,23.776884]
[1733754858493,1.5434,229.12,228.99,23.776884]
[1733754858816,20.0,229.07,228.98,0.5252676]
[1733754861410,1.5762,229.01,228.8,6.4948]
[1733754861600,20.0,228.96,228.8,26.64987109]
[1733754861807,20.0,228.96,228.8,20.15507109]
[1733754862008,20.0,228.95,228.8,20.15507109]
[1733754862718,20.0,228.95,228.79,20.15507109]
[1733754863640,20.0,228.95,228.8,24.153354]
[1733754863938,20.0,228.95,228.8,44.30842509]
[1733754864112,20.0,228.95,228.8,23.902374]
[1733754864435,20.0,228.95,228.8,44.05744509]
[1733754864633,20.0,228.95,228.83,0.12549]
[1733754865245,20.0,228.95,228.83,0.25098]
[1733754866231,20.0,228.96,228.83,0.25098]
[1733754866545,20.0,228.96,228.83,0.12549]
[1733754867103,20.0,228.96,228.83,0.25098]
[1733754869006,6.4722,228.99,228.85,0.12549]
[1733754869208,6.4722,228.99,228.86,0.25098]
[1733754869722,6.4722,228.99,228.89,24.027864]
[1733754869944,6.4722,228.99,228.9,0.12549]
[1733754871103,6.4722,228.99,228.89,24.027864]
[1733754871305,6.4722,228.99,228.87,23.776884]
[1733754871510,137.85098,228.98,228.75,7.0200676]
[1733754871746,20.0,228.94,228.77,20.15507109]
[1733754872114,20.0,228.94,228.75,7.0200676]
[1733754872115,0.25098,228.92,228.75,0.5252676]
[1733754872313,0.12549,228.9,228.75,0.5252676]
[1733754872717,20.0,228.86,228.75,0.5252676]
[1733754873114,20.0,228.86,228.76,0.25098]
[1733754873318,20.0,228.86,228.78,20.15507109]
[1733754873840,6.3507,228.89,228.79,23.776884]
[1733754874650,6.3507,228.89,228.8,0.12549]
[1733754875312,1.5327,228.91,228.81,23.776884]
[1733754875513,1.5327,228.91,228.82,0.12549]
[1733754876239,1.5327,228.91,228.82,0.25098]
[1733754876447,1.5327,228.91,228.84,0.25098]
[1733754876745,6.2413,228.95,228.84,0.25098]
[1733754876746,6.2413,228.95,228.84,0.12549]
[1733754877825,20.0,228.92,228.82,23.776884]
[1733754878237,20.0,228.92,228.83,0.37647]
[1733754878429,20.0,228.92,228.84,23.776884]
[1733754878626,20.0,228.92,228.83,20.53154109]
[1733754878627,20.0,228.92,228.83,0.37647]
[1733754878853,20.0,228.92,228.83,24.153354]
[1733754879069,20.0,228.92,228.83,0.37647]
[1733754879545,20.0,228.92,228.82,0.12549]
[1733754879730,20.0,228.92,228.81,23.653354]
[1733754879929,20.0,228.92,228.77,20.15507109]
[1733754880238,20.0,228.92,228.81,20.15507109]
[1733754881539,20.0,228.92,228.82,24.153354]
[1733754881736,6.2413,228.95,228.84,23.776884]
[1733754882663,6.2413,228.95,228.81,20.15507109]
[1733754882664,6.2413,228.95,228.82,23.776884]
[1733754882827,0.25098,228.94,228.82,23.776884]
[1733754883028,20.0,228.92,228.82,23.776884]
[1733754883223,20.0,228.92,228.75,20.68033869]
[1733754883654,20.0,228.92,228.76,0.25098]
[1733754883951,20.0,228.92,228.77,20.15507109]
[1733754884428,20.0,228.92,228.78,23.776884]
[1733754886138,0.12549,228.9,228.75,20.68033869]
[1733754886649,1.90108,228.89,228.75,0.5252676]
[1733754886846,0.12549,228.88,228.75,0.5252676]
[1733754888241,20.0,228.84,228.75,0.5252676]
[1733754889066,0.12549,228.83,228.75,0.5252676]
[1733754889232,1.6047,228.81,228.75,0.5252676]
[1733754891139,0.25098,228.8,228.75,0.5252676]
[1733754892541,1.6047,228.81,228.75,0.5252676]
[1733754895609,0.25098,228.8,228.75,0.5252676]
[1733754897181,1.6047,228.81,228.6,20.15507109]
[1733754897182,20.0,228.74,228.6,20.15507109]
[1733754897477,20.0,228.74,228.59,6.3826]
[1733754897478,20.0,228.74,228.59,26.53767109]
[1733754898975,20.0,228.74,228.6,43.93195509]
[1733754899381,20.0,228.74,228.59,20.15507109]
[1733754899787,20.0,228.74,228.62,0.25098]
[1733754900091,20.0,228.74,228.64,20.15507109]
[1733754900276,6.3265,228.77,228.65,20.28056109]
[1733754900457,6.3265,228.77,228.68,20.15507109]
[1733754900781,6.3265,228.77,228.67,23.776884]
[1733754901165,6.3265,228.77,228.66,44.05744509]
[1733754901493,20.0,228.74,228.66,23.902374]
[1733754902360,6.0528,228.83,228.68,23.902374]
[1733754902759,6.0528,228.83,228.7,0.12549]
[1733754902962,6.0528,228.83,228.72,43.93195509]
[1733754903174,6.0528,228.83,228.74,23.776884]
[1733754903687,6.0528,228.83,228.72,20.40605109]
[1733754903857,6.0528,228.83,228.73,23.776884]
[1733754904689,1.77723612,228.92,228.74,23.902374]
[1733754904690,1.6109,228.87,228.74,23.902374]
[1733754905492,1.6109,228.87,228.76,0.12549]
[1733754905792,5.0,228.96,228.76,0.12549]
[1733754905793,1.80441098,228.95,228.81,20.15507109]
[1733754905960,1.6109,228.94,228.82,23.776884]
[1733754906158,1.6109,228.94,228.83,20.40605109]
[1733754906354,1.6109,228.94,228.84,23.776884]
[1733754906785,1.6109,228.94,228.83,44.05744509]
[1733754907273,1.6109,228.94,228.84,20.15507109]
[1733754907500,1.6109,228.94,228.86,0.25098]
[1733754907793,1.6271,229.0,228.89,20.15507109]
[1733754908122,1.6271,229.0,228.93,23.776884]
[1733754908599,1.6271,229.06,228.95,23.902374]
[1733754908798,1.6271,229.06,228.97,24.027864]
[1733754909092,6.4722,229.1,229.02,23.902374]
[1733754909258,1.6271,229.13,229.02,23.902374]
[1733754909468,7.9467,229.21,229.1,23.776884]
[1733754909785,1.6271,229.21,229.12,23.776884]
[1733754909960,6.3196,229.27,229.14,23.776884]
[1733754910165,1.6271,229.3,229.14,23.776884]
[1733754910166,1.6271,229.3,229.18,23.776884]
[1733754910498,1.6271,229.3,229.19,0.12549]
[1733754910799,1.6271,229.3,229.2,23.776884]
[1733754911359,1.6271,229.3,229.1,20.15507109]
[1733754911566,137.85098,229.29,229.11,23.776884]
[1733754911798,137.85098,229.29,229.11,23.902374]
[1733754912393,20.0,229.26,229.11,23.902374]
[1733754912559,0.25098,229.25,229.11,23.776884]
[1733754912760,20.37647,229.25,229.07,23.776884]
[1733754912982,20.37647,229.25,229.02,6.0983]
[1733754912983,0.12549,229.21,229.02,26.25337109]
[1733754913298,0.12549,229.21,228.98,20.15507109]
[1733754913299,20.0,229.14,228.98,20.15507109]
[1733754913600,0.25098,229.13,228.96,20.15507109]
[1733754913964,0.12549,229.12,228.96,20.15507109]
[1733754914413,21.5725,229.14,229.0,20.15507109]
[1733754914587,21.5725,229.14,229.02,20.15507109]
[1733754914788,21.5725,229.14,229.03,0.12549]
[1733754915411,21.5725,229.14,229.03,23.776884]
[1733754915800,21.5725,229.14,229.01,23.776884]
[1733754916205,21.5725,229.14,229.02,0.12549]
[1733754916522,21.5725,229.14,228.98,20.15507109]
[1733754916523,0.25098,229.13,228.98,20.15507109]
[1733754916688,0.12549,229.12,228.96,20.15507109]
[1733754916887,20.0,229.09,228.92,20.15507109]
[1733754917203,0.12549,229.08,228.92,20.15507109]
[1733754917404,0.12549,229.08,228.96,20.15507109]
[1733754917405,20.0,229.08,228.96,20.15507109]
[1733754917596,20.0,229.08,228.97,0.12549]
[1733754917793,20.0,229.08,228.99,0.25098]
[1733754918005,1.5725,229.14,229.04,20.15507109]
[1733754918410,1.5725,229.14,229.05,0.12549]
[1733754918634,137.6,229.25,229.1,20.15507109]
[1733754918635,1.5766,229.22,229.1,20.15507109]
[1733754918922,1.5766,229.22,229.13,24.027864]
[1733754919125,1.5766,229.22,229.15,23.776884]
[1733754919327,6.2141,229.25,229.15,23.776884]
[1733754919631,0.12549,229.24,229.15,23.776884]
[1733754919923,0.25098,229.24,229.15,23.776884]
[1733754920107,0.12549,229.23,229.15,23.776884]
[1733754920591,6.2141,229.25,229.15,23.776884]
[1733754920789,0.37647,229.24,229.15,23.776884]
[1733754920992,0.25098,229.21,229.04,20.28056109]
[1733754921323,0.12549,229.19,228.97,0.65472822]
[1733754921499,0.12549,229.18,228.98,20.15507109]
[1733754921701,0.12549,229.14,228.98,20.15507109]
[1733754921908,0.25098,229.14,228.98,20.15507109]
[1733754922118,0.12549,229.13,228.96,20.15507109]
[1733754922430,20.0,229.11,228.96,20.15507109]
[1733754922731,20.0,229.11,228.94,20.15507109]
[1733754922895,0.25098,229.1,228.94,20.15507109]
[1733754923096,20.0,229.06,228.92,20.15507109]
[1733754923741,20.0,229.06,228.9,20.15507109]
[1733754923908,20.37647,229.05,228.88,20.15507109]
[1733754924116,20.37647,229.05,228.86,20.15507109]
[1733754924437,0.37647,229.03,228.82,20.15507109]
[1733754924604,157.6,229.04,228.88,20.28056109]
[1733754925025,0.25098,229.04,228.88,20.28056109]
[1733754925429,0.12549,229.03,228.86,20.15507109]
[1733754925644,20.0,229.03,228.89,0.25098]
[1733754926131,20.0,229.06,228.91,0.12549]
[1733754926629,20.0,229.06,228.91,23.902374]
[1733754927218,6.5122,229.09,228.93,0.12549]
[1733754927413,6.5122,229.09,228.97,0.25098]
[1733754927734,6.5122,229.09,228.99,23.776884]
[1733754928419,1.5132,229.15,229.04,23.776884]
[1733754929433,0.25098,229.14,229.04,23.776884]
[1733754929734,0.12549,229.13,229.04,23.776884]
[1733754930296,20.12549,229.14,229.04,23.776884]
[1733754931621,21.5132,229.15,229.04,23.776884]
[1733754932020,0.25098,229.14,229.04,23.776884]
[1733754932738,1.5132,229.15,229.03,23.902374]
[1733754933419,1.5132,229.15,229.03,44.05744509]
[1733754933736,1.508,229.23,229.11,0.12549]
[1733754933928,1.508,229.23,229.11,23.902374]
[1733754934527,1.508,229.23,229.13,23.776884]
[1733754935014,1.508,229.23,229.14,0.12549]
[1733754935536,1.508,229.23,229.15,23.776884]
[1733754935927,1.537,229.31,229.16,0.12549]
[1733754936734,0.25098,229.3,229.12,0.12549]
[1733754937036,1.537,229.31,229.16,20.28056109]
[1733754937341,1.537,229.31,229.17,23.776884]
[1733754937638,1.537,229.31,229.19,23.776884]
[1733754938206,20.0,229.29,229.17,23.776884]
[1733754938608,0.25098,229.28,229.17,23.776884]
[1733754940001,0.12549,229.27,229.17,23.776884]
[1733754941108,0.25098,229.22,229.06,20.15507109]
[1733754941422,0.12549,229.21,229.04,20.15507109]
[1733754941739,0.12549,229.21,229.05,0.12549]
[1733754941949,6.0954,229.18,229.04,20.15507109]
[1733754942239,20.0,229.15,229.04,20.15507109]
[1733754942611,20.0,229.15,229.0,20.15507109]
[1733754942612,21.5509,229.15,229.0,20.15507109]
[1733754943161,21.5509,229.15,229.04,20.15507109]
[1733754943508,21.5509,229.15,229.05,20.15507109]
[1733754943708,20.0,229.15,229.1,23.902374]
[1733754944022,20.0,229.21,229.1,23.902374]
[1733754944637,1.5483,229.22,229.12,23.902374]
[1733754945037,1.5483,229.22,229.12,23.776884]
[1733754945862,20.0,229.21,229.1,23.902374]
[1733754946022,20.0,229.21,229.06,23.776884]
[1733754946219,20.0,229.21,229.07,20.53154109]
[1733754946461,20.0,229.21,229.08,23.776884]
[1733754947338,20.0,229.21,229.1,23.776884]
[1733754947666,20.0,229.21,229.11,0.25098]
[1733754947865,20.0,229.21,229.12,23.776884]
[1733754948020,20.0,229.21,229.14,23.776884]
[1733754948458,6.3407,229.24,229.16,23.776884]
[1733754948620,1.6407,229.28,229.16,23.776884]
[1733754948823,1.6407,229.28,229.18,23.776884]
[1733754949025,1.6407,229.28,229.21,0.12549]
[1733754949327,1.6407,229.28,229.22,23.776884]
[1733754950368,21.6407,229.28,229.2,23.776884]
[1733754950657,21.6407,229.28,229.16,20.15507109]
[1733754950658,21.6407,229.28,229.19,23.776884]
[1733754951628,21.6407,229.28,229.21,0.12549]
[1733754951838,20.0,229.28,229.22,0.12549]
[1733754952065,20.0,229.28,229.21,23.776884]
[1733754952953,20.0,229.28,229.19,23.776884]
[1733754953497,20.0,229.28,229.16,20.15507109]
[1733754954083,20.0,229.28,229.17,0.12549]
[1733754954295,20.0,229.28,229.18,20.15507109]
[1733754954657,20.0,229.28,229.19,23.776884]
[1733754956266,20.0,229.28,229.17,23.902374]
[1733754956602,20.0,229.28,229.18,20.15507109]
[1733754956775,20.0,229.28,229.19,23.776884]
[1733754957390,20.0,229.28,229.16,20.28056109]
[1733754957391,20.0,229.28,229.17,23.776884]
[1733754958394,20.0,229.28,229.15,24.153354]
[1733754958594,20.0,229.28,229.17,23.776884]
[1733754958972,20.0,229.28,229.12,20.15507109]
[1733754959496,20.0,229.28,229.13,0.25098]
[1733754960300,0.12549,229.29,229.12,20.15507109]
[1733754960595,20.0,229.28,229.13,0.25098]
[1733754960919,0.37647,229.27,229.13,23.776884]
[1733754961069,0.37647,229.27,229.11,23.776884]
[1733754961374,0.37647,229.27,229.1,20.15507109]
[1733754961579,1.5274,229.26,229.1,20.15507109]
[1733754961908,1.5274,229.26,229.13,0.25098]
[1733754962471,1.5274,229.26,229.15,0.25098]
[1733754962698,1.5274,229.26,229.18,20.15507109]
[1733754962998,1.5274,229.26,229.21,23.776884]
[1733754963237,6.3523,229.31,229.22,0.25098]
[1733754963401,6.3523,229.31,229.21,23.776884]
[1733754964267,20.0,229.28,229.21,23.776884]
[1733754965107,6.3523,229.31,229.21,23.776884]
[1733754965296,1.5247,229.32,229.25,23.776884]
[1733754966683,0.12549,229.31,229.25,23.776884]
[1733754967211,1.5247,229.32,229.25,23.776884]
[1733754968998,0.37647,229.31,229.14,20.15507109]
[1733754969198,0.37647,229.31,229.12,20.15507109]
[1733754969412,0.37647,229.31,229.13,0.12549]
[1733754969413,20.0,229.28,229.13,0.12549]
[1733754969816,20.0,229.28,229.13,0.25098]
[1733754970019,20.0,229.28,229.15,0.25098]
[1733754970217,21.5247,229.32,229.17,0.25098]
[1733754970519,0.12549,229.31,229.16,20.15507109]
[1733754970696,0.12549,229.31,229.17,23.776884]
[1733754970903,21.5247,229.32,229.17,23.776884]
[1733754971213,21.5247,229.32,229.18,0.25098]
[1733754971701,1.5247,229.32,229.19,23.776884]
[1733754973114,1.5247,229.32,229.2,0.25098]
[1733754974709,1.5247,229.32,229.19,23.776884]
[1733754975616,1.5247,229.32,229.2,0.25098]
[1733754975917,1.5247,229.32,229.21,23.776884]
[1733754976117,1.5247,229.32,229.22,0.25098]
[1733754976629,6.0219,229.36,229.28,23.776884]
[1733754976789,6.0219,229.36,229.29,0.25098]
[1733754977695,1.5285,229.38,229.29,0.25098]
[1733754978287,1.5285,229.38,229.31,0.25098]
[1733754978488,6.6535,229.41,229.31,20.40605109]
[1733754978808,6.6535,229.41,229.32,23.776884]
[1733754979120,6.6535,229.41,229.31,0.25098]
[1733754979610,6.6535,229.41,229.31,20.40605109]
[1733754979815,20.0,229.38,229.32,23.776884]
[1733754980716,6.6535,229.41,229.33,0.25098]
[1733754980901,6.6535,229.41,229.34,23.776884]
[1733754981617,6.6535,229.41,229.33,24.027864]
[1733754981818,6.6535,229.41,229.33,44.18293509]
[1733754982028,6.6535,229.41,229.33,24.027864]
[1733754984598,20.0,229.38,229.33,23.776884]
[1733754984810,6.6535,229.41,229.33,23.776884]
[1733754985007,6.6535,229.41,229.3,20.15507109]
[1733754985008,20.0,229.38,229.31,23.776884]
[1733754985301,20.0,229.38,229.32,0.25098]
[1733754985826,20.0,229.38,229.3,23.776884]
[1733754986040,20.0,229.38,229.32,23.776884]
[1733754986238,1.5731,229.44,229.34,23.776884]
[1733754986742,1.5731,229.44,229.35,0.25098]
[1733754986901,1.5731,229.44,229.36,23.776884]
[1733754987103,1.5731,229.44,229.37,20.40605109]
[1733754987437,0.5252676,229.56,229.4,23.776884]
[1733754987438,17.449781,229.53,229.4,23.776884]
[1733754988135,7.9957,229.55,229.41,12.80638386]
[1733754988433,7.9957,229.55,229.42,23.776884]
[1733754988434,25.443171,229.55,229.42,23.776884]
[1733754989335,20.0,229.52,229.41,24.027864]
[1733754989758,7.9957,229.55,229.43,23.776884]
[1733754989944,7.9957,229.55,229.36,0.65376579]
[1733754989945,7.9957,229.55,229.45,23.776884]
[1733754990455,1.5489,229.55,229.46,20.334404]
[1733754990656,1.5489,229.55,229.47,23.776884]
[1733754991423,1.5489,229.55,229.43,23.902374]
[1733754991624,1.5489,229.55,229.43,23.776884]
[1733754992520,0.12549,229.54,229.37,20.083424]
[1733754992720,20.37647,229.54,229.37,20.083424]
[1733754992967,0.25098,229.52,229.34,20.083424]
[1733754993158,20.0,229.5,229.32,20.083424]
[1733754993364,20.0,229.5,229.35,0.25098]
[1733754994429,20.0,229.5,229.35,24.027864]
[1733754995458,20.0,229.5,229.37,20.334404]
[1733754995660,6.5646,229.53,229.41,0.25098]
[1733754995956,6.5646,229.53,229.42,23.776884]
[1733754996455,6.5646,229.53,229.44,23.776884]
[1733754996762,6.5646,229.53,229.45,0.25098]
[1733754996928,1.5489,229.55,229.46,0.12549]
[1733754997130,1.5489,229.55,229.47,0.25098]
[1733754997373,1.5489,229.55,229.47,20.334404]
[1733754997850,1.5489,229.55,229.48,23.776884]
[1733754999832,1.5489,229.55,229.46,23.776884]